fUST/lending_fUST_20240803
["ID","MTS","AMOUNT","RATE_DAILY","PERIOD"]
[334037852,1722699065508,-2616.62459287,0.0002,2]
[334037853,1722699065518,-100000.0,0.0002,2]
[334037854,1722699065530,-2349.35324221,0.0002,2]
[334037855,1722699065542,-174.27942595,0.0002,2]
[334037856,1722699065551,-233.39984349,0.0002,2]
[334037857,1722699065560,-607.2456041,0.0002,2]
[334037858,1722699065571,-769.28146264,0.0002,2]
[334037859,1722699065580,-1120.2515389,0.0002,2]
[334037860,1722699065589,-151.22781866,0.0002,2]
[334037861,1722699065599,-679.59240947,0.0002,2]
[334037862,1722699065609,-707.91306206,0.0002,2]
[334037863,1722699065618,-1009.9271361,0.0002,2]
[334037864,1722699065704,-711.72743346,0.0002,2]
[334037865,1722699065714,-752.66176999,0.0002,2]
[334037866,1722699065724,-150.0,0.0002,2]
[334037867,1722699065734,-4708.10933521,0.0002,2]
[334037868,1722699065743,-1534.20169551,0.0002,2]
[334037869,1722699065755,-1857.88826008,0.0002,2]
[334037870,1722699065765,-1585.26609936,0.0002,2]
[334037871,1722699065776,-5942.78994093,0.0002,2]
[334037872,1722699065786,-506.55917395,0.0002,2]
[334037873,1722699065797,-721.29973312,0.0002,2]
[334037874,1722699065810,-3946.0,0.0002,2]
[334037875,1722699065823,-1867.84936027,0.0002,2]
[334037876,1722699065833,-1546.78388314,0.0002,2]
[334037877,1722699065844,-10000.0,0.0002,2]
[334037878,1722699065856,-10000.0,0.0002,2]
[334037879,1722699065868,-17083.0,0.0002,2]
[334037880,1722699065879,-949.76130762,0.0002,2]
[334037881,1722699065891,-1153.49179295,0.0002,2]
[334037882,1722699066169,-1366.3507542,0.00016438,2]
[334037883,1722699066182,-502.9192458,0.00016438,2]
[334037884,1722699066191,-492.22192493,0.00016712,2]
[334037885,1722699138807,330.0,0.00027,120]
[334037886,1722699177257,330.0,0.00027,120]
[334037887,1722699191027,420.82952932,0.00027,120]
[334037888,1722699211367,171.82907683,0.00025,60]
[334037889,1722699499272,98000.0,0.00015,15]
[334037890,1722699660030,273.37336231,9.9e-05,2]
[334037891,1722699668538,273.37336231,9.9e-05,2]
[334037892,1722699683975,273.37336231,9.9e-05,2]
[334037893,1722699691962,273.37336231,9.9e-05,2]
[334037894,1722699700355,273.37336231,9.9e-05,2]
[334037895,1722699708969,273.37336231,9.9e-05,2]
[334037896,1722699717691,273.37336231,9.9e-05,2]
[334037897,1722699726872,273.37336231,9.9e-05,2]
[334037898,1722699735107,273.37336231,9.9e-05,2]
[334037899,1722699743319,273.37336231,9.9e-05,2]
[334037900,1722699752737,273.37336231,9.9e-05,2]
[334037901,1722699753745,665.82927068,0.00025,120]
[334037902,1722699760817,273.37336231,9.9e-05,2]
[334037903,1722699769595,273.37336231,9.9e-05,2]
[334037904,1722699778213,273.37336231,9.9e-05,2]
[334037905,1722699782151,271.18563857,9.9e-05,2]
[334037906,1722699783807,9859.29630911,9.9e-05,2]
[334037907,1722699786976,273.37336231,9.9e-05,2]
[334037908,1722699787465,4712.37284123,9.9e-05,2]
[334037909,1722699794146,2108.40472945,9.9e-05,2]
[334037910,1722699795044,273.37336231,9.9e-05,2]
[334037911,1722699803240,273.37336231,9.9e-05,2]
[334037912,1722699806510,2596.89778515,9.9e-05,2]
[334037913,1722699808575,1626.86783463,9.9e-05,2]
[334037914,1722699812078,522.86776842,9.999e-05,2]
[334037915,1722699814646,218.66301514,9.9e-05,2]
[334037916,1722699819070,273.37336231,9.9e-05,2]
[334037917,1722699819563,180.87946219,9.999e-05,2]
[334037918,1722699823959,942.05026838,9.999e-05,2]
[334037919,1722699825357,154.79678224,9.999e-05,2]
[334037920,1722699827583,273.37336231,9.9e-05,2]
[334037921,1722699835788,273.37336231,9.9e-05,2]
[334037922,1722699838514,19463.40149674,9.9e-05,2]
[334037923,1722699839930,231.40661786,9.999e-05,2]
[334037924,1722699844766,156.83154324,9.999e-05,2]
[334037925,1722699844958,273.37336231,9.9e-05,2]
[334037926,1722699845381,154.71377951,0.00027,120]
[334037927,1722699850926,231.40661786,9.999e-05,2]
[334037928,1722699853237,273.37336231,9.9e-05,2]
[334037929,1722699855561,519.46703512,9.999e-05,2]
[334037930,1722699858189,319.6458186,9.999e-05,2]
[334037931,1722699858221,157.62048758,9.999e-05,2]
[334037932,1722699858372,237.07330954,9.999e-05,2]
[334037933,1722699860396,290.31500293,9.999e-05,2]
[334037934,1722699861503,201.75811956,9.999e-05,2]
[334037935,1722699862518,273.37336231,9.9e-05,2]
[334037936,1722699865215,165.77226121,9.999e-05,2]
[334037937,1722699866389,16287.01982776,9.999e-05,2]
[334037938,1722699866607,154.71377951,9.999e-05,2]
[334037939,1722699868555,231.8942764,9.999e-05,2]
[334037940,1722699870787,273.37336231,9.9e-05,2]
[334037941,1722699874387,288.16966581,0.0001,2]
[334037942,1722699879082,3601.91477368,9.999e-05,2]
[334037943,1722699879452,273.37336231,9.9e-05,2]
[334037944,1722699881603,154.71377951,9.999e-05,2]
[334037945,1722699882811,202.22217016,9.999e-05,2]
[334037946,1722699888933,273.37336231,9.9e-05,2]
[334037947,1722699889450,3080.88889929,9.999e-05,2]
[334037948,1722699891847,569.37379121,9.999e-05,2]
[334037949,1722699892152,193.96535773,9.999e-05,2]
[334037950,1722699894160,494.10879056,9.999e-05,2]
[334037951,1722699894598,342.54102064,9.999e-05,2]
[334037952,1722699894639,155.06625104,9.999e-05,2]
[334037953,1722699895451,600.69981744,9.999e-05,2]
[334037954,1722699896986,273.37336231,9.9e-05,2]
[334037955,1722699897967,942.37062895,9.999e-05,2]
[334037956,1722699898366,154.71377951,9.999e-05,2]
[334037957,1722699898445,154.71377951,9.999e-05,2]
[334037958,1722699899067,404.65460675,0.0001,2]
[334037959,1722699899351,154.74015018,0.0001,2]
[334037960,1722699901050,154.75227043,9.999e-05,2]
[334037961,1722699901444,154.71941749,9.999e-05,2]
[334037962,1722699903648,241.14492435,9.999e-05,2]
[334037963,1722699903686,542.94098629,9.999e-05,2]
[334037964,1722699904156,2108.40472945,0.0001,2]
[334037965,1722699905636,154.74080243,9.999e-05,2]
[334037966,1722699906018,273.37336231,9.9e-05,2]
[334037967,1722699907473,154.71377951,9.999e-05,2]
[334037968,1722699908116,154.8913051,9.999e-05,2]
[334037969,1722699910357,159.30956912,9.999e-05,2]
[334037970,1722699910992,210.92165997,9.999e-05,2]
[334037971,1722699911875,156.77873769,9.999e-05,2]
[334037972,1722699914670,155.00410665,9.999e-05,2]
[334037973,1722699914703,273.37336231,9.9e-05,2]
[334037974,1722699915058,154.75227043,9.999e-05,2]
[334037975,1722699915090,521.99851068,9.999e-05,2]
[334037976,1722699915145,218.30768663,0.0001,2]
[334037977,1722699916514,3785.54866294,0.0001,2]
[334037978,1722699917603,330.73988639,9.999e-05,2]
[334037979,1722699919868,195.44979789,9.999e-05,2]
[334037980,1722699920282,309.30406586,9.999e-05,2]
[334037981,1722699920362,159.30956912,9.999e-05,2]
[334037982,1722699920667,414.49729973,9.999e-05,2]
[334037983,1722699921028,19463.40149674,0.0001,2]
[334037984,1722699921630,309.30406586,9.999e-05,2]
[334037985,1722699922231,154.71377951,9.999e-05,2]
[334037986,1722699922811,273.37336231,9.9e-05,2]
[334037987,1722699923489,154.71377951,9.999e-05,2]
[334037988,1722699924596,154.92000473,9.999e-05,2]
[334037989,1722699925603,163.02554165,9.999e-05,2]
[334037990,1722699928706,1292.73629049,0.0001,2]
[334037991,1722700154207,-273.37336231,9.801e-05,2]
[334037992,1722700154234,-300.0,9.998e-05,2]
[334037993,1722700154258,-300.0,9.998e-05,2]
[334037994,1722700154281,-154.79200541,9.999e-05,2]
[334037995,1722700154306,-180.43272034,9.999e-05,2]
[334037996,1722700154330,-249.30648832,9.999e-05,2]
[334037997,1722700154354,-154.71941749,9.999e-05,2]
[334037998,1722700154378,-157.76489495,9.999e-05,2]
[334037999,1722700154400,-250.90837549,9.999e-05,2]
[334038000,1722700154422,-432.64635157,9.999e-05,2]
[334038001,1722700154446,-155.2341102,9.999e-05,2]
[334038002,1722700154467,-156.57079759,9.999e-05,2]
[334038003,1722700154489,-665.17930419,9.999e-05,2]
[334038004,1722700154515,-426.89711274,9.999e-05,2]
[334038005,1722700154538,-849.3304683,9.999e-05,2]
[334038006,1722700154561,-288.50805677,9.999e-05,2]
[334038007,1722700154585,-533.23598085,9.999e-05,2]
[334038008,1722700154609,-319.6458186,9.999e-05,2]
[334038009,1722700154632,-154.71377951,9.999e-05,2]
[334038010,1722700154656,-154.74112765,9.999e-05,2]
[334038011,1722700154681,-309.30406586,9.999e-05,2]
[334038012,1722700154823,-519.46703512,9.999e-05,2]
[334038013,1722700154848,-533.78606257,9.999e-05,2]
[334038014,1722700154872,-220.20418461,9.999e-05,2]
[334038015,1722700154898,-780.7895079,9.999e-05,2]
[334038016,1722700154923,-309.30406586,9.999e-05,2]
[334038017,1722700154945,-290.31500293,9.999e-05,2]
[334038018,1722700154971,-728.57899177,9.999e-05,2]
[334038019,1722700154995,-165.49284567,9.999e-05,2]
[334038020,1722700155017,-154.71377951,9.999e-05,2]
[334038021,1722700155038,-155.39463687,9.999e-05,2]
[334038022,1722700155061,-154.93824139,9.999e-05,2]
[334038023,1722700155083,-309.30406586,9.999e-05,2]
[334038024,1722700155108,-154.71377951,9.999e-05,2]
[334038025,1722700155130,-154.71377951,9.999e-05,2]
[334038026,1722700155154,-568.42284982,9.999e-05,2]
[334038027,1722700155178,-542.94098629,9.999e-05,2]
[334038028,1722700155200,-201.42471188,9.999e-05,2]
[334038029,1722700155223,-154.99728573,9.999e-05,2]
[334038030,1722700155246,-260.82372856,9.999e-05,2]
[334038031,1722700155269,-600.69981744,9.999e-05,2]
[334038032,1722700155290,-154.71377951,9.999e-05,2]
[334038033,1722700155314,-435.3226797,9.999e-05,2]
[334038034,1722700155337,-341.96120082,9.999e-05,2]
[334038035,1722700155359,-240.74120205,9.999e-05,2]
[334038036,1722700155381,-507.20842776,9.999e-05,2]
[334038037,1722700155404,-163.02554165,9.999e-05,2]
[334038038,1722700155428,-154.78801852,9.999e-05,2]
[334038039,1722700155450,-242.24790748,9.999e-05,2]
[334038040,1722700155472,-522.06567766,9.999e-05,2]
[334038041,1722700155494,-183.06078838,9.999e-05,2]
[334038042,1722700155515,-154.71377951,9.999e-05,2]
[334038043,1722700155538,-154.97941937,9.999e-05,2]
[334038044,1722700155559,-192.33029516,9.999e-05,2]
[334038045,1722700155581,-156.77873769,9.999e-05,2]
[334038046,1722700155603,-154.71377951,9.999e-05,2]
[334038047,1722700155624,-942.37062895,9.999e-05,2]
[334038048,1722700155645,-309.30406586,9.999e-05,2]
[334038049,1722700155667,-155.0028962,9.999e-05,2]
[334038050,1722700155689,-413.80608461,9.999e-05,2]
[334038051,1722700155710,-159.65927304,9.999e-05,2]
[334038052,1722700155731,-154.76734651,9.999e-05,2]
[334038053,1722700155752,-309.42214608,9.999e-05,2]
[334038054,1722700155773,-159.46949008,9.999e-05,2]
[334038055,1722700155793,-303.61847495,9.999e-05,2]
[334038056,1722700155814,-200.0,9.999e-05,2]
[334038057,1722700155837,-154.97579966,9.999e-05,2]
[334038058,1722700155859,-185.67587275,9.999e-05,2]
[334038059,1722700155880,-155.66299177,9.999e-05,2]
[334038060,1722700155904,-375.83395724,9.999e-05,2]
[334038061,1722700155925,-156.95333335,9.999e-05,2]
[334038062,1722700155948,-309.31949788,9.999e-05,2]
[334038063,1722700155970,-154.71377951,9.999e-05,2]
[334038064,1722700155990,-154.71377951,9.999e-05,2]
[334038065,1722700156011,-200.01382974,0.0001,2]
[334038066,1722700156031,-1626.86783463,0.0001,2]
[334038067,1722700156052,-155.02042883,0.0001,2]
[334038068,1722700156074,-287.79973101,0.0001,2]
[334038069,1722700156094,-4712.37284123,0.0001,2]
[334038070,1722700156114,-227.85703094,0.0001,2]
[334038071,1722700156136,-3601.91477368,0.0001,2]
[334038072,1722700156158,-404.65460675,0.0001,2]
[334038073,1722700156183,-2108.40472945,0.0001,2]
[334038074,1722700156204,-16287.01982776,0.0001,2]
[334038075,1722700156225,-19463.40149674,0.0001,2]
[334038076,1722700156246,-294.89922809,0.0001,2]
[334038077,1722700156267,-200.0,0.0001,2]
[334038078,1722700156288,-3785.54866294,0.0001,2]
[334038079,1722700156308,-218.30768663,0.0001,2]
[334038080,1722700156329,-155.54138296,0.0001,2]
[334038081,1722700156351,-185.0279105,0.00010515,2]
[334038082,1722700156374,-12327.75710999,0.00011515,2]
[334038083,1722700161136,-273.37336231,9.9e-05,2]
[334038084,1722700161158,-309.3349299,0.0001,2]
[334038085,1722700161184,-12572.24289001,0.00011515,2]
[334038086,1722700161206,-21884.9479716,0.00012111,2]
[334038087,1722700168747,273.37336231,9.9e-05,2]
[334038088,1722700170098,-2000.0,0.00012899,2]
[334038089,1722700170130,-972.5171869,0.000129,2]
[334038090,1722700170160,-166.780077,0.00012986,2]
[334038091,1722700170203,-2999.6386301,0.00012989,2]
[334038092,1722700177723,273.37336231,9.9e-05,2]
[334038093,1722700179323,309.3349299,0.00012121,2]
[334038094,1722700185695,273.37336231,9.9e-05,2]
[334038095,1722700187173,494.19612385,9.999e-05,2]
[334038096,1722700187668,664.18424721,0.00012121,2]
[334038097,1722700188983,16287.01982776,0.00012121,2]
[334038098,1722700189190,288.50805677,0.00012121,2]
[334038099,1722700192223,319.70105146,0.00012121,2]
[334038100,1722700192250,154.85282493,0.00012121,2]
[334038101,1722700192503,533.87977422,0.00012121,2]
[334038102,1722700193069,180.46429061,0.00012121,2]
[334038103,1722700193810,273.37336231,9.9e-05,2]
[334038104,1722700194059,157.79229303,0.00012121,2]
[334038105,1722700194148,3601.91477368,0.00012121,2]
[334038106,1722700194175,154.79103211,0.00012121,2]
[334038107,1722700194667,2108.7693428,0.00012121,2]
[334038108,1722700194948,309.3349299,0.00012121,2]
[334038109,1722700196310,159.22692644,0.00012121,2]
[334038110,1722700197415,290.36567298,0.00012121,2]
[334038111,1722700197739,259.58850501,0.00012121,2]
[334038112,1722700197852,532.07679789,0.00012121,2]
[334038113,1722700197883,156.95333335,0.00012121,2]
[334038114,1722700198178,413.87776733,0.00012121,2]
[334038115,1722700199347,403.7082582,0.00012121,2]
[334038116,1722700199477,374.2098708,0.00012121,2]
[334038117,1722700199568,426.89711274,0.00012121,2]
[334038118,1722700200371,568.52238973,0.00012121,2]
[334038119,1722700201112,154.71377951,0.00012121,2]
[334038120,1722700201471,849.3304683,0.00012121,2]
[334038121,1722700201500,404.72502915,0.00012121,2]
[334038122,1722700201635,543.03597555,0.00012121,2]
[334038123,1722700201771,154.71377951,0.00012121,2]
[334038124,1722700201801,258.56984909,0.00012121,2]
[334038125,1722700201904,727.46839186,0.00012121,2]
[334038126,1722700202035,154.73853499,0.00012121,2]
[334038127,1722700202175,779.59941017,0.00012121,2]
[334038128,1722700202495,309.31949788,0.00012121,2]
[334038129,1722700202948,273.37336231,9.9e-05,2]
[334038130,1722700202980,154.83750087,0.00012121,2]
[334038131,1722700203097,196.08966082,0.00012121,2]
[334038132,1722700203377,156.80608978,0.00012121,2]
[334038133,1722700203691,218.345205,0.00012121,2]
[334038134,1722700203723,154.71377951,0.00012121,2]
[334038135,1722700204109,163.05415597,0.00012121,2]
[334038136,1722700204595,183.20844745,0.00012121,2]
[334038137,1722700205615,521.67506793,0.00012121,2]
[334038138,1722700206038,10633.86209983,0.00012121,2]
[334038139,1722700206062,8829.53939691,0.00012121,2]
[334038140,1722700206108,342.02067389,0.00012121,2]
[334038141,1722700206945,183.36543967,0.00012121,2]
[334038142,1722700206975,600.80373264,0.00012121,2]
[334038143,1722700208534,154.71377951,0.00012121,2]
[334038144,1722700209826,165.52155498,0.00012121,2]
[334038145,1722700210000,4712.37284123,0.00012121,2]
[334038146,1722700210032,3785.54866294,0.00012121,2]
[334038147,1722700210071,519.55687676,0.00012121,2]
[334038148,1722700210273,156.5983355,0.00012121,2]
[334038149,1722700211929,273.37336231,9.9e-05,2]
[334038150,1722700212150,334.01740455,0.00012121,2]
[334038151,1722700214127,156.25691533,0.00012121,2]
[334038152,1722700214874,405.28182436,0.00012121,2]
[334038153,1722700215902,187.64611561,0.00012121,2]
[334038154,1722700216071,3608.33001858,0.00012121,2]
[334038155,1722700216435,849.3304683,0.00012121,2]
[334038156,1722700217974,201.45923245,0.00012121,2]
[334038157,1722700218228,1492.75012023,0.00012121,2]
[334038158,1722700219882,273.37336231,9.9e-05,2]
[334038159,1722700228086,273.37336231,9.9e-05,2]
[334038209,1722700232633,-1533.825,0.00012989,2]
[334038216,1722700232694,-3150.0,0.00012989,2]
[334038667,1722700237342,273.37336231,9.9e-05,2]
[334038822,1722700238935,-189281.0681139,0.00012989,2]
[334038824,1722700238946,-2655.53298813,0.00012999,5]
[334038826,1722700238956,-451156.2653753,0.00012999,2]
[334038828,1722700238966,-972.51718685,0.00013559,2]
[334038830,1722700238976,-21884.9479716,0.00013688,2]
[334038833,1722700238990,-1544.75,0.00013697,2]
[334038835,1722700239001,-500.0,0.00013698,2]
[334038837,1722700239011,-500.0,0.00013698,2]
[334038839,1722700239022,-504.04210718,0.00013698,2]
[334038842,1722700239033,-505.90119621,0.00013698,2]
[334038845,1722700239042,-500.0,0.00013698,2]
[334038846,1722700239056,-500.0,0.00013698,2]
[334038849,1722700239066,-500.0,0.00013698,2]
[334038850,1722700239076,-521.28259252,0.00013698,2]
[334038853,1722700239087,-500.0,0.00013698,2]
[334038855,1722700239097,-505.72277134,0.00013698,2]
[334038856,1722700239107,-500.0,0.00013698,2]
[334038859,1722700239119,-176.439896,0.00013698,2]
[334038861,1722700239130,-497.17330972,0.00013698,2]
[334038863,1722700239139,-500.0,0.00013698,2]
[334038865,1722700239148,-503.44149162,0.00013698,2]
[334038878,1722700239270,-500.0,0.00013698,2]
[334038880,1722700239280,-507.15484908,0.00013698,2]
[334038882,1722700239291,-500.0,0.00013698,2]
[334038884,1722700239301,-587.07673767,0.00013698,2]
[334038886,1722700239316,-506.00803671,0.00013698,2]
[334038888,1722700239326,-500.0,0.00013698,2]
[334038890,1722700239336,-500.0,0.00013698,2]
[334038892,1722700239346,-500.0,0.00013698,2]
[334038894,1722700239356,-500.0,0.00013698,2]
[334038896,1722700239366,-500.0,0.00013698,2]
[334038898,1722700239375,-500.0,0.00013698,2]
[334038900,1722700239385,-500.0,0.00013698,2]
[334038902,1722700239395,-500.0,0.00013698,2]
[334038904,1722700239405,-500.0,0.00013698,2]
[334038906,1722700239416,-500.0,0.00013698,2]
[334038908,1722700239426,-204.81771448,0.00013698,2]
[334038910,1722700239436,-214.41777576,0.00013698,2]
[334038912,1722700239446,-500.0,0.00013698,2]
[334038914,1722700239456,-284.49447605,0.00013698,2]
[334038916,1722700239466,-500.0,0.00013698,2]
[334038918,1722700239476,-500.0,0.00013698,2]
[334038920,1722700239486,-200.0,0.00013698,2]
[334038922,1722700239496,-552.0143931,0.00013698,2]
[334038924,1722700239506,-264.88017676,0.00013698,2]
[334038926,1722700239516,-500.0,0.00013698,2]
[334038928,1722700239526,-500.0,0.00013698,2]
[334038930,1722700239537,-500.0,0.00013698,2]
[334038932,1722700239548,-500.0,0.00013698,2]
[334038934,1722700239562,-500.0,0.00013698,2]
[334038936,1722700239574,-500.0,0.00013698,2]
[334038938,1722700239585,-500.0,0.00013698,2]
[334038940,1722700239595,-500.0,0.00013698,2]
[334038942,1722700239605,-500.0,0.00013698,2]
[334038944,1722700239615,-500.0,0.00013698,2]
[334038947,1722700239626,-500.0,0.00013698,2]
[334038949,1722700239638,-500.0,0.00013698,2]
[334038951,1722700239648,-500.0,0.00013698,2]
[334038953,1722700239658,-196.65960183,0.00013698,2]
[334038955,1722700239667,-500.0,0.00013698,2]
[334038957,1722700239677,-500.0,0.00013698,2]
[334038959,1722700239689,-500.0,0.00013698,2]
[334038961,1722700239700,-500.0,0.00013698,2]
[334038963,1722700239710,-500.0,0.00013698,2]
[334038965,1722700239720,-500.0,0.00013698,2]
[334038967,1722700239731,-352.63152519,0.00013698,2]
[334038969,1722700239740,-500.0,0.00013698,2]
[334038971,1722700239750,-500.0,0.00013698,2]
[334038973,1722700239760,-500.0,0.00013698,2]
[334038975,1722700239770,-500.0,0.00013698,2]
[334038977,1722700239781,-500.0,0.00013698,2]
[334038979,1722700239792,-500.0,0.00013698,2]
[334038981,1722700239803,-500.0,0.00013698,2]
[334038983,1722700239816,-500.0,0.00013698,2]
[334038985,1722700239825,-500.0,0.00013698,2]
[334038988,1722700239836,-500.0,0.00013698,2]
[334038990,1722700239846,-500.0,0.00013698,2]
[334038992,1722700239857,-500.0,0.00013698,2]
[334038994,1722700239867,-500.0,0.00013698,2]
[334038996,1722700239877,-500.0,0.00013698,2]
[334038998,1722700239887,-500.0,0.00013698,2]
[334039000,1722700239897,-500.0,0.00013698,2]
[334039002,1722700239909,-500.0,0.00013698,2]
[334039004,1722700239922,-500.0,0.00013698,2]
[334039006,1722700239931,-500.0,0.00013698,2]
[334039008,1722700239942,-500.0,0.00013698,2]
[334039010,1722700239952,-500.0,0.00013698,2]
[334039012,1722700239963,-500.0,0.00013698,2]
[334039014,1722700239973,-500.0,0.00013698,2]
[334039016,1722700239985,-513.779782,0.00013698,2]
[334039018,1722700239995,-594.51,0.00013698,2]
[334039020,1722700240005,-500.0,0.00013698,2]
[334039022,1722700240015,-323.79943119,0.00013698,2]
[334039024,1722700240025,-500.0,0.00013698,2]
[334039026,1722700240035,-500.0,0.00013698,2]
[334039028,1722700240045,-336.21191831,0.00013698,2]
[334039030,1722700240056,-500.0,0.00013698,2]
[334039032,1722700240066,-500.0,0.00013698,2]
[334039034,1722700240075,-856.72,0.00013698,2]
[334039036,1722700240085,-541.83,0.00013698,2]
[334039040,1722700240094,-500.0,0.00013698,2]
[334039043,1722700240106,-500.0,0.00013698,2]
[334039045,1722700240118,-500.0,0.00013698,2]
[334039047,1722700240129,-500.0,0.00013698,2]
[334039049,1722700240139,-500.0,0.00013698,2]
[334039051,1722700240148,-1544.75,0.00013698,2]
[334039053,1722700240158,-500.0,0.00013698,2]
[334039055,1722700240168,-1733.26,0.00013698,2]
[334039057,1722700240177,-500.0,0.00013698,2]
[334039059,1722700240187,-500.0,0.00013698,2]
[334039061,1722700240197,-500.0,0.00013698,2]
[334039063,1722700240206,-500.0,0.00013698,2]
[334039066,1722700240216,-500.0,0.00013698,2]
[334039068,1722700240226,-500.0,0.00013698,2]
[334039070,1722700240236,-500.0,0.00013698,2]
[334039072,1722700240246,-544.74,0.00013698,2]
[334039074,1722700240256,-500.0,0.00013698,2]
[334039076,1722700240265,-500.0,0.00013698,2]
[334039078,1722700240275,-500.0,0.00013698,2]
[334039080,1722700240285,-1373.13,0.00013698,2]
[334039082,1722700240295,-500.0,0.00013698,2]
[334039084,1722700240307,-500.0,0.00013698,2]
[334039086,1722700240316,-500.0,0.00013698,2]
[334039088,1722700240325,-500.0,0.00013698,2]
[334039090,1722700240335,-500.0,0.00013698,2]
[334039092,1722700240344,-500.0,0.00013698,2]
[334039094,1722700240353,-500.0,0.00013698,2]
[334039096,1722700240363,-500.0,0.00013698,2]
[334039098,1722700240372,-504.82807091,0.00013698,2]
[334039100,1722700240382,-500.0,0.00013698,2]
[334039102,1722700240391,-500.0,0.00013698,2]
[334039104,1722700240402,-371.06766861,0.00013698,2]
[334039106,1722700240412,-500.0,0.00013698,2]
[334039108,1722700240422,-500.0,0.00013698,2]
[334039110,1722700240432,-500.0,0.00013698,2]
[334039112,1722700240442,-500.0,0.00013698,2]
[334039114,1722700240453,-476.87552723,0.00013698,2]
[334039116,1722700240463,-500.0,0.00013698,2]
[334039118,1722700240473,-500.0,0.00013698,2]
[334039120,1722700240483,-500.0,0.00013698,2]
[334039122,1722700240492,-500.0,0.00013698,2]
[334039124,1722700240502,-500.0,0.00013698,2]
[334039126,1722700240511,-500.0,0.00013698,2]
[334039128,1722700240521,-536.02,0.00013698,2]
[334039130,1722700240531,-500.0,0.00013698,2]
[334039132,1722700240541,-500.0,0.00013698,2]
[334039134,1722700240550,-500.0,0.00013698,2]
[334039136,1722700240561,-1869.78,0.00013698,2]
[334039138,1722700240571,-500.48732358,0.00013698,2]
[334039140,1722700240581,-500.0,0.00013698,2]
[334039142,1722700240591,-500.0,0.00013698,2]
[334039144,1722700240601,-500.0,0.00013698,2]
[334039146,1722700240611,-506.80839058,0.00013698,2]
[334039148,1722700240621,-500.0,0.00013698,2]
[334039150,1722700240630,-500.0,0.00013698,2]
[334039152,1722700240641,-500.0,0.00013698,2]
[334039154,1722700240650,-500.0,0.00013698,2]
[334039156,1722700240660,-500.0,0.00013698,2]
[334039158,1722700240670,-500.0,0.00013698,2]
[334039160,1722700240679,-1161.84,0.00013698,2]
[334039162,1722700240688,-500.0,0.00013698,2]
[334039164,1722700240698,-500.0,0.00013698,2]
[334039166,1722700240708,-596.99793014,0.00013698,2]
[334039168,1722700240719,-500.0,0.00013698,2]
[334039170,1722700240729,-500.0,0.00013698,2]
[334039172,1722700240740,-763.63,0.00013698,2]
[334039174,1722700240750,-500.0,0.00013698,2]
[334039176,1722700240759,-500.0,0.00013698,2]
[334039178,1722700240769,-500.0,0.00013698,2]
[334039180,1722700240778,-400.70284305,0.00013698,2]
[334039182,1722700240788,-500.0,0.00013698,2]
[334039184,1722700240798,-500.0,0.00013698,2]
[334039186,1722700240812,-500.0,0.00013698,2]
[334039188,1722700240822,-500.0,0.00013698,2]
[334039190,1722700240833,-500.0,0.00013698,2]
[334039192,1722700240843,-500.0,0.00013698,2]
[334039194,1722700240853,-500.0,0.00013698,2]
[334039196,1722700240863,-500.0,0.00013698,2]
[334039198,1722700240872,-500.0,0.00013698,2]
[334039200,1722700240882,-500.0,0.00013698,2]
[334039202,1722700240892,-500.0,0.00013698,2]
[334039204,1722700240902,-500.0,0.00013698,2]
[334039206,1722700240915,-500.0,0.00013698,2]
[334039208,1722700240925,-500.0,0.00013698,2]
[334039210,1722700240935,-500.0,0.00013698,2]
[334039212,1722700240946,-500.0,0.00013698,2]
[334039215,1722700240957,-500.0,0.00013698,2]
[334039216,1722700240966,-500.0,0.00013698,2]
[334039219,1722700240976,-500.0,0.00013698,2]